bitfinex-derivatives/quotes_SOLF0:USTF0_20240912
["timestamp","ask_amount","ask_price","bid_price","bid_amount"]
[1726108156164,11.36,135.22,135.15,11.36]
[1726108156367,11.36,135.22,135.16,3.3286]
[1726108157060,11.36,135.21,135.15,3.329]
[1726108157275,11.36,135.21,135.15,14.689]
[1726108158365,11.36,135.21,135.16,3.3288]
[1726108159571,11.36,135.21,135.15,11.36]
[1726108159761,11.36,135.16,135.1,14.0583]
[1726108160272,11.36,135.16,135.12,3.3298]
[1726108160661,11.36,135.16,135.1,1.4071]
[1726108161060,11.36,135.16,135.1,4.7373]
[1726108161261,11.36,135.16,135.1,1.4071]
[1726108161571,11.36,135.16,135.13,3.3296]
[1726108161966,11.36,135.16,135.1,1.4071]
[1726108162171,11.36,135.16,135.11,3.3299]
[1726108162473,0.4283,135.22,135.1,12.7671]
[1726108162673,1.17482274,135.21,135.1,12.7671]
[1726108162876,11.36,135.17,135.1,12.7671]
[1726108163078,11.36,135.17,135.12,3.3296]
[1726108165186,0.4283,135.22,135.12,3.3296]
[1726108165379,11.36,135.17,135.12,3.3296]
[1726108165882,11.36,135.17,135.1,12.7671]
[1726108166070,11.36,135.18,135.11,11.36]
[1726108166665,11.36,135.18,135.13,3.3295]
[1726108168171,11.36,135.18,135.13,3.3296]
[1726108168776,11.36,135.18,135.12,3.3298]
[1726108169168,0.4283,135.22,135.13,14.6895]
[1726108169473,11.36,135.19,135.13,14.6895]
[1726108169678,11.36,135.19,135.13,11.36]
[1726108169980,11.36,135.19,135.14,3.3293]
[1726108170174,11.36,135.2,135.14,11.36]
[1726108170380,11.36,135.2,135.15,3.3289]
[1726108171986,0.4283,135.22,135.15,3.3289]
[1726108172176,11.36,135.2,135.15,3.3289]
[1726108172585,0.4283,135.22,135.15,3.3289]
[1726108172882,11.36,135.2,135.15,3.3289]
[1726108173186,11.36,135.2,135.14,14.6892]
[1726108173677,2.6339,135.23,135.15,3.3289]
[1726108173982,11.36,135.2,135.15,3.3289]
[1726108174286,2.6339,135.23,135.15,3.3289]
[1726108174581,11.36,135.2,135.15,3.3289]
[1726108174781,11.36,135.2,135.13,3.3294]
[1726108174984,11.36,135.19,135.13,11.36]
[1726108175371,11.36,135.19,135.14,3.3291]
[1726108175676,11.36,135.19,135.13,11.36]
[1726108176882,11.36,135.19,135.15,3.329]
[1726108182378,2.6339,135.23,135.16,3.3288]
[1726108182683,11.36,135.2,135.14,11.36]
[1726108182984,2.6339,135.23,135.15,11.36]
[1726108183187,2.6339,135.23,135.17,11.36]
[1726108183384,2.6339,135.23,135.1,2.8321]
[1726108183385,11.36,135.21,135.15,11.36]
[1726108184283,11.36,135.21,135.15,14.6889]
[1726108185084,11.36,135.21,135.16,3.3286]
[1726108185282,11.36,135.23,135.17,11.36]
[1726108185982,11.36,135.23,135.17,14.6885]
[1726108186378,11.36,135.23,135.18,3.3283]
[1726108186785,11.36,135.24,135.18,14.6883]
[1726108187991,11.36,135.26,135.2,3.3278]
[1726108188182,11.36,135.26,135.19,11.36]
[1726108189279,104.42842995,135.27,135.21,11.36]
[1726108189579,11.36,135.28,135.22,11.36]
[1726108190891,3.3262,135.27,135.22,14.6872]
[1726108191080,3.3262,135.27,135.22,3.3272]
[1726108191278,3.3262,135.27,135.22,14.6872]
[1726108191783,3.3259,135.28,135.22,14.6872]
[1726108191985,6.98907193,135.28,135.23,14.6871]
[1726108192184,3.3259,135.28,135.23,14.6871]
[1726108192990,11.36,135.3,135.24,14.6867]
[1726108193193,11.36,135.3,135.24,11.36]
[1726108193691,15.09252115,135.3,135.24,11.36]
[1726108194385,3.3257,135.29,135.24,11.36]
[1726108195992,11.36,135.29,135.22,3.3273]
[1726108196193,11.36,135.29,135.22,14.6873]
[1726108196786,3.3262,135.27,135.22,14.6873]
[1726108196987,11.36,135.29,135.22,14.6873]
[1726108197789,3.3262,135.27,135.22,14.6873]
[1726108197985,14.6862,135.27,135.22,3.3273]
[1726108198196,14.6862,135.27,135.22,14.6873]
[1726108198498,3.3259,135.28,135.23,3.3271]
[1726108199100,11.36,135.27,135.21,1.4257]
[1726108199393,11.36,135.27,135.22,11.36]
[1726108199593,3.64857363,135.27,135.23,3.327]
[1726108199801,3.3261,135.28,135.23,3.327]
[1726108200495,3.3263,135.27,135.22,3.3273]
[1726108200692,11.36,135.27,135.21,12.7857]
[1726108200887,11.36,135.23,135.2,1.2983]
[1726108201294,11.36,135.25,135.2,12.6583]
[1726108201490,3.67113222,135.25,135.24,3.3267]
[1726108201692,11.36,135.29,135.23,11.36]
[1726108202400,14.97972823,135.29,135.23,11.36]
[1726108202702,2.7907,135.28,135.23,11.36]
[1726108203097,11.36,135.26,135.2,1.2983]
[1726108203297,11.36,135.24,135.2,1.2983]
[1726108203607,14.6871,135.24,135.2,1.2983]
[1726108204196,3.3271,135.23,135.2,1.2983]
[1726108204597,14.6869,135.24,135.2,1.2983]
[1726108205796,11.36,135.22,135.02,10.12760147]
[1726108205998,11.36,135.2,135.13,11.36]
[1726108206203,11.36,135.18,135.13,14.6894]
[1726108206410,1.3004,135.22,135.13,11.36]
[1726108206599,11.36,135.2,135.14,11.36]
[1726108207105,11.36,135.2,135.16,3.3287]
[1726108207403,11.36,135.21,135.14,11.36]
[1726108207601,14.6878,135.21,135.15,3.329]
[1726108207804,14.6878,135.21,135.14,11.36]
[1726108208803,14.6878,135.21,135.16,3.3288]
[1726108208994,11.36,135.21,135.14,11.36]
[1726108209201,11.36,135.18,135.08,1.3606]
[1726108209504,11.36,135.18,135.12,11.36]
[1726108209704,11.36,135.18,135.13,11.36]
[1726108209899,11.36,135.2,135.14,11.36]
[1726108210300,1.3004,135.22,135.17,3.3284]
[1726108210301,11.36,135.21,135.17,3.3284]
[1726108210502,11.36,135.23,135.17,14.6884]
[1726108210703,11.36,135.21,135.16,11.36]
[1726108210902,11.36,135.21,135.11,1.3716]
[1726108211097,11.36,135.21,135.16,11.36]
[1726108211298,3.3271,135.23,135.16,11.36]
[1726108211503,11.36,135.23,135.17,14.6884]
[1726108211703,11.36,135.23,135.17,11.36]
[1726108212303,11.36,135.23,135.17,14.6886]
[1726108212304,3.3275,135.22,135.17,14.6886]
[1726108212813,11.36,135.23,135.17,11.36]
[1726108213204,11.36,135.24,135.18,11.36]
[1726108213405,11.36,135.25,135.18,11.36]
[1726108213803,3.3271,135.24,135.19,3.328]
[1726108214115,11.36,135.25,135.18,11.36]
[1726108214326,3.3275,135.22,135.17,11.36]
[1726108215202,3.3275,135.22,135.17,14.6884]
[1726108215615,3.3272,135.23,135.19,3.3281]
[1726108215815,11.36,135.24,135.19,14.6881]
[1726108216016,14.6871,135.24,135.19,14.6881]
[1726108216209,11.36,135.24,135.19,14.6881]
[1726108217118,6.39696434,135.26,135.17,11.36]
[1726108217119,3.3274,135.22,135.17,11.36]
[1726108217416,11.36,135.24,135.17,11.36]
[1726108217622,14.6869,135.24,135.19,3.3281]
[1726108218039,3.3269,135.24,135.18,11.36]
[1726108218239,3.3269,135.24,135.19,3.328]
[1726108218438,14.6869,135.24,135.19,3.328]
[1726108219444,11.36,135.25,135.18,11.36]
[1726108219743,3.69486434,135.26,135.19,1.4187]
[1726108220043,11.36,135.27,135.21,11.36]
[1726108220244,3.65197736,135.26,135.21,11.36]
[1726108220839,3.65197736,135.26,135.22,3.3273]
[1726108222142,3.65197736,135.26,135.21,11.36]
[1726108222336,11.36,135.27,135.21,12.6541]
[1726108222532,3.1458,135.33,135.24,11.36]
[1726108222737,3.1458,135.33,135.25,3.3266]
[1726108222937,2.7152,135.33,135.25,3.3266]
[1726108223343,11.36,135.31,135.25,3.3266]
[1726108223846,3.3256,135.3,135.25,3.3266]
[1726108224041,2.7152,135.33,135.26,14.6863]
[1726108224246,117.93414723,135.35,135.29,11.36]
[1726108224436,114.32512392,135.35,135.29,11.36]
[1726108224632,11.36,135.34,135.27,11.36]
[1726108224837,3.3248,135.33,135.28,3.3258]
[1726108225938,14.685,135.32,135.26,12.7591]
[1726108226145,3.71127393,135.31,135.26,12.7591]
[1726108226444,7.03657393,135.31,135.26,16.0853]
[1726108226646,3.3253,135.31,135.26,16.0853]
[1726108226839,14.6853,135.31,135.26,3.3262]
[1726108227037,11.36,135.3,135.25,2.6988]
[1726108227541,3.67874484,135.31,135.23,3.3271]
[1726108227542,14.6859,135.28,135.23,3.3271]
[1726108228243,11.36,135.27,135.21,15.4441]
[1726108228741,11.36,135.27,135.21,18.7716]
[1726108228742,3.3266,135.26,135.21,18.7716]
[1726108230139,3.3266,135.26,135.21,17.3725]
[1726108230443,14.6867,135.25,135.21,6.0125]
[1726108230645,11.36,135.24,135.21,1.3991]
[1726108230853,11.36,135.23,135.17,11.36]
[1726108231059,7.09773298,135.22,135.17,11.36]
[1726108231350,11.36,135.24,135.18,11.36]
[1726108231539,15.02568369,135.24,135.18,11.36]
[1726108231735,15.02568369,135.24,135.2,3.3277]
[1726108232540,3.66568369,135.24,135.19,12.6487]
[1726108232850,11.36,135.25,135.19,12.6487]
[1726108233250,3.60805818,135.24,135.21,3.3275]
[1726108234154,14.6866,135.25,135.21,3.3275]
[1726108234454,3.66575752,135.24,135.21,3.3275]
[1726108234639,14.687,135.24,135.19,1.2887]
[1726108235543,18.35201779,135.24,135.19,1.2887]
[1726108235744,18.35201779,135.24,135.2,3.3278]
[1726108237048,11.36,135.23,135.14,1.393]
[1726108237255,3.66501779,135.24,135.15,12.6469]
[1726108237256,11.36,135.21,135.15,12.6469]
[1726108237554,14.688,135.2,135.15,4.6157]
[1726108237745,15.10342971,135.2,135.15,1.2869]
[1726108237944,18.43132971,135.2,135.16,3.3286]
[1726108238150,15.10342971,135.2,135.15,1.2869]
[1726108238350,11.36,135.22,135.15,12.6469]
[1726108238549,14.6874,135.22,135.17,3.3286]
[1726108239056,3.78050762,135.21,135.17,3.3286]
[1726108239258,11.36,135.22,135.16,3.3287]
[1726108239447,11.36,135.17,135.09,11.36]
[1726108239753,14.6889,135.16,135.12,3.3297]
[1726108239958,11.36,135.16,135.06,4.1303]
[1726108240160,11.36,135.16,135.08,11.36]
[1726108240451,3.3292,135.15,135.1,11.36]
[1726108240851,11.36,135.13,135.06,4.1303]
[1726108241050,11.36,135.13,135.06,15.4903]
[1726108241255,11.36,135.13,135.07,11.36]
[1726108241446,11.36,135.14,135.09,11.36]
[1726108242051,11.36,135.14,135.1,3.3303]
[1726108242255,11.36,135.14,135.09,11.36]
[1726108242256,3.70800473,135.15,135.06,4.1303]
[1726108242461,17.78,135.14,135.06,4.1303]
[1726108242852,3.3298,135.13,135.09,3.3305]
[1726108243159,6.9893881,135.13,135.09,3.3305]
[1726108243356,6.9893881,135.13,135.06,4.1303]
[1726108243357,3.3302,135.11,135.06,4.1303]
[1726108243559,17.78,135.12,135.06,4.1303]
[1726108243760,3.1566,135.21,135.06,4.1303]
[1726108244063,3.3298,135.13,135.08,3.3306]
[1726108244558,3.3298,135.13,135.09,3.3305]
[1726108244750,3.74879218,135.12,135.09,3.3305]
[1726108245149,3.74879218,135.12,135.08,3.3306]
[1726108245758,3.3293,135.14,135.09,3.3305]
[1726108245965,3.62348063,135.13,135.06,4.1303]
[1726108246266,17.78,135.15,135.06,4.1303]
[1726108246459,24.75499241,135.15,135.1,3.3301]
[1726108246962,24.75499241,135.15,135.06,4.1303]
[1726108246963,24.75499241,135.15,135.11,3.33]
[1726108248154,21.42569241,135.15,135.11,3.33]
[1726108248351,17.78,135.17,135.13,3.3295]
[1726108248665,21.53905849,135.17,135.08,17.78]
[1726108249262,24.86775849,135.17,135.11,3.3299]
[1726108250071,24.86775849,135.17,135.12,3.3298]
[1726108250262,24.86775849,135.17,135.08,17.78]
[1726108250263,3.75905849,135.17,135.08,17.78]
[1726108250565,3.65616185,135.18,135.15,3.3289]
[1726108250762,23.8353,135.21,135.11,17.78]
[1726108250964,23.8353,135.21,135.12,4.1827]
[1726108251155,20.5076,135.21,135.12,4.1827]
[1726108251660,3.328,135.2,135.15,3.3289]
[1726108252762,3.3284,135.18,135.13,3.3295]
[1726108252962,3.3284,135.18,135.12,4.1827]
[1726108252963,3.70845895,135.18,135.12,4.1827]
[1726108253260,20.5076,135.21,135.12,4.1827]
[1726108253859,17.78,135.19,135.12,4.1827]
[1726108254059,21.46255673,135.19,135.12,1.3848]
[1726108254259,3.3288,135.17,135.12,4.7146]
[1726108254466,3.3288,135.17,135.12,3.3298]
[1726108254860,3.329,135.16,135.1,3.3301]
[1726108255062,21.46255673,135.19,135.09,1.4237]
[1726108256158,3.3284,135.18,135.13,3.3295]
[1726108256969,21.1082,135.19,135.13,3.3295]
[1726108257165,17.78,135.19,135.14,3.3293]
[1726108257665,17.78,135.19,135.12,3.3298]
[1726108257864,17.78,135.19,135.09,1.4237]
[1726108258366,17.78,135.19,135.13,3.3294]
[1726108258872,3.3291,135.15,135.09,1.4237]
[1726108259069,17.78,135.16,135.09,1.4237]
[1726108259471,21.109,135.16,135.11,3.33]
[1726108259667,17.78,135.16,135.11,3.33]
[1726108260068,21.1089,135.16,135.11,3.33]
[1726108260570,17.78,135.16,135.12,3.3298]
[1726108260769,0.4305,135.19,135.09,1.4237]
[1726108260770,17.78,135.18,135.09,1.4237]
[1726108261164,0.4305,135.19,135.09,1.4237]
[1726108261165,17.78,135.16,135.09,1.4237]
[1726108261766,3.3294,135.14,135.1,3.3302]
[1726108262272,17.78,135.16,135.1,3.3302]
[1726108262476,3.3293,135.15,135.1,3.3302]
[1726108263576,17.78,135.14,135.03,17.78]
[1726108263764,17.78,135.14,135.04,1.2899]
[1726108263963,17.78,135.12,135.04,1.2899]
[1726108264372,21.1099,135.12,135.07,3.3309]
[1726108265672,17.78,135.12,135.08,3.3307]
[1726108266480,21.11,135.12,135.07,3.331]
[1726108266677,21.11,135.12,135.04,1.2899]
[1726108267071,17.78,135.12,135.04,1.2899]
[1726108267668,17.78,135.12,135.08,3.3306]
[1726108267669,21.1098,135.12,135.08,3.3306]
[1726108268477,17.78,135.14,135.04,19.0699]
[1726108268679,17.78,135.14,135.05,1.3752]
[1726108268880,17.78,135.14,135.1,3.3301]
[1726108269573,17.78,135.14,135.11,3.3301]
[1726108269773,17.78,135.16,135.11,3.3301]
[1726108269973,17.78,135.16,135.06,19.0669]
[1726108270179,17.78,135.16,135.08,17.78]
[1726108270479,3.3287,135.17,135.09,1.2857]
[1726108270678,3.3287,135.17,135.12,3.3296]
[1726108271372,3.3287,135.17,135.13,3.3296]
[1726108271774,3.3287,135.17,135.09,1.2857]
[1726108272279,3.3287,135.17,135.12,3.3297]
[1726108273578,3.329,135.16,135.11,3.33]
[1726108273780,21.109,135.16,135.11,3.33]
[1726108274074,17.78,135.16,135.09,1.2857]
[1726108274881,3.3292,135.15,135.1,3.3302]
[1726108276375,17.78,135.16,135.09,1.2857]
[1726108276578,17.78,135.14,135.06,1.2869]
[1726108276977,3.3297,135.13,135.06,2.6721]
[1726108277580,3.3297,135.13,135.08,3.3308]
[1726108277771,3.3298,135.12,135.08,3.3308]
[1726108278986,21.1096,135.13,135.08,3.3308]
[1726108279675,21.1096,135.13,135.09,3.3305]
[1726108280090,17.78,135.13,135.06,2.6721]
[1726108280384,17.78,135.13,135.06,1.3852]
[1726108280986,17.78,135.13,135.08,3.3308]
[1726108281279,17.78,135.15,135.06,1.3852]
[1726108281983,3.3297,135.13,135.08,3.3307]
[1726108282190,17.78,135.15,135.06,1.3852]
[1726108282379,17.78,135.13,135.06,1.3852]
[1726108282585,21.1097,135.13,135.07,3.3308]
[1726108282787,21.1097,135.13,135.06,1.3852]
[1726108283887,21.1097,135.13,135.08,3.3308]
[1726108284482,17.78,135.13,135.09,3.3305]
[1726108284785,17.78,135.15,135.06,1.3852]
[1726108285884,3.3296,135.13,135.06,1.3852]
[1726108286681,3.3296,135.13,135.08,3.3306]
[1726108287090,3.3294,135.14,135.06,1.3852]
[1726108287391,3.3294,135.14,135.09,3.3304]
[1726108287582,17.78,135.15,135.09,3.3304]
[1726108287784,17.78,135.13,135.06,4.7163]
[1726108287983,17.78,135.13,135.06,1.3852]
[1726108288181,11.37,135.1,135.06,1.3852]
[1726108288385,11.37,135.1,135.07,3.3309]
[1726108291393,11.37,135.1,135.08,3.3307]
[1726108294295,11.37,135.11,135.08,3.3307]
[1726108295286,11.37,135.11,135.1,3.3303]
[1726108295491,11.37,135.12,135.07,11.37]
[1726108295691,11.37,135.15,135.08,11.37]
[1726108295891,11.37,135.15,135.09,11.37]
[1726108296690,11.37,135.15,135.12,3.3297]
[1726108296992,0.4305,135.19,135.11,11.37]
[1726108297198,11.37,135.18,135.12,11.37]
[1726108298100,11.37,135.18,135.11,11.37]
[1726108298298,11.37,135.18,135.14,3.3291]
[1726108298896,11.37,135.18,135.15,3.329]
[1726108300007,11.37,135.16,135.12,1.3018]
[1726108300198,17.77,135.17,135.12,1.3018]
[1726108300494,21.0987,135.17,135.12,1.3018]
[1726108301092,17.77,135.17,135.12,1.3018]
[1726108301295,2.7276,135.21,135.12,1.3018]
[1726108301296,17.77,135.19,135.12,1.3018]
[1726108301492,17.77,135.23,135.13,17.77]
[1726108301692,17.77,135.23,135.15,17.77]
[1726108301902,3.2185,135.25,135.15,17.77]
[1726108301903,20.5605,135.25,135.15,17.77]
[1726108302207,17.77,135.25,135.16,19.1802]
[1726108302899,21.0966,135.25,135.2,3.3277]
[1726108303802,17.77,135.25,135.16,19.1802]
[1726108304399,3.3269,135.24,135.16,19.1802]
[1726108305404,3.3269,135.24,135.16,1.4102]
[1726108305605,3.3272,135.23,135.19,3.3279]
[1726108306108,17.77,135.23,135.16,1.4102]
[1726108306405,17.77,135.23,135.19,3.3279]
[1726108306406,21.0971,135.23,135.19,3.3279]
[1726108308108,3.3275,135.22,135.16,1.4102]
[1726108309304,3.3276,135.21,135.17,3.3285]
[1726108310703,3.3276,135.21,135.16,4.739]
[1726108310909,3.3276,135.21,135.16,1.4102]
[1726108311111,17.77,135.23,135.16,1.4102]
[1726108311411,3.3276,135.22,135.16,1.4102]
[1726108312609,21.0972,135.23,135.16,1.4102]
[1726108312815,17.77,135.23,135.16,1.4102]
[1726108313017,17.77,135.25,135.16,1.4102]
[1726108313208,3.3269,135.24,135.2,3.3278]
[1726108314213,17.77,135.23,135.18,3.3283]
[1726108314509,17.77,135.23,135.17,1.3418]
[1726108315218,21.0972,135.23,135.19,3.3279]
[1726108316120,17.77,135.23,135.19,3.3279]
[1726108316616,21.0966,135.25,135.17,1.3418]
[1726108316917,17.77,135.25,135.22,3.3273]
[1726108317124,17.77,135.27,135.22,3.3273]
[1726108317316,21.0963,135.27,135.22,3.3273]
[1726108318219,3.3264,135.26,135.22,3.3273]
[1726108318410,3.3264,135.26,135.21,3.3275]
[1726108318611,17.77,135.27,135.18,1.328]
[1726108318808,21.0963,135.27,135.18,1.328]
[1726108319233,21.0963,135.27,135.22,3.3272]
[1726108319524,3.3265,135.26,135.18,1.328]
[1726108319724,17.77,135.25,135.18,1.328]
[1726108319920,21.0968,135.25,135.18,1.328]
[1726108320316,3.3269,135.24,135.2,3.3278]
[1726108320718,17.77,135.25,135.17,1.3418]
[1726108321326,3.3272,135.23,135.19,3.3279]
[1726108327024,3.3272,135.23,135.17,1.3418]
[1726108327025,17.77,135.23,135.17,1.3418]
[1726108328936,17.77,135.21,135.11,17.77]
[1726108329138,17.77,135.17,135.09,1.3063]
[1726108329638,17.77,135.17,135.09,2.6077]
[1726108330327,3.3289,135.16,135.11,3.3298]
[1726108330527,17.77,135.17,135.11,3.3298]
[1726108331036,17.77,135.15,135.09,1.3063]
[1726108331926,17.77,135.15,135.08,1.2934]
[1726108331927,17.77,135.15,135.04,17.77]
[1726108332127,3.3293,135.14,135.08,3.3308]
[1726108332329,3.3293,135.14,135.05,2.7998]
[1726108332525,17.77,135.15,135.05,2.7998]
[1726108332736,17.77,135.15,135.06,19.0684]
[1726108333131,17.77,135.15,135.09,3.3304]
[1726108334128,3.3295,135.14,135.1,3.3303]
[1726108335539,17.77,135.15,135.11,3.3301]
[1726108335840,17.77,135.15,135.06,19.0684]
[1726108336238,21.0993,135.15,135.1,3.3302]
[1726108336845,21.0993,135.15,135.06,19.0684]
[1726108337236,17.77,135.15,135.06,19.0684]
[1726108338240,17.77,135.15,135.11,3.3299]
[1726108338443,3.3294,135.14,135.06,1.2984]
[1726108339446,3.3294,135.14,135.1,3.3301]
[1726108344340,3.3296,135.13,135.09,3.3305]
[1726108344734,17.77,135.15,135.06,1.2984]
[1726108344942,3.3294,135.14,135.1,3.3302]
[1726108346241,17.77,135.15,135.07,17.77]
[1726108346444,17.77,135.17,135.07,17.77]
[1726108346840,17.77,135.17,135.12,3.3296]
[1726108347445,3.329,135.16,135.12,3.3296]
[1726108351549,17.77,135.15,135.1,3.3301]
[1726108352353,21.0993,135.14,135.1,3.3301]
[1726108353054,1.2906,135.18,135.06,1.2984]
[1726108353055,17.77,135.12,135.06,1.2984]
[1726108353454,17.77,135.14,135.06,1.2984]
[1726108353955,17.77,135.14,135.09,3.3304]
[1726108354846,17.77,135.14,135.1,3.3303]
[1726108355854,17.77,135.14,135.11,3.33]
[1726108356357,11.36,135.12,135.11,3.33]
[1726108357454,11.36,135.12,135.1,3.3303]
[1726108358150,11.36,135.12,135.06,1.2984]
[1726108358151,11.36,135.12,135.06,12.6584]
[1726108359760,11.36,135.12,135.11,3.3301]
[1726108363457,11.36,135.12,135.09,3.3303]
[1726108363759,11.36,135.1,135.09,3.3303]
[1726108365961,11.36,135.1,135.05,1.4058]
[1726108366162,11.36,135.07,135.01,11.36]
[1726108366559,11.36,135.08,135.07,3.3309]
[1726108367560,11.36,135.1,135.09,3.3305]
[1726108368961,11.36,135.11,135.1,3.3302]
[1726108370068,11.36,135.11,135.07,1.2885]
[1726108370260,11.36,135.08,135.07,1.2885]
[1726108370456,11.36,135.1,135.07,1.2885]
[1726108370662,11.36,135.1,135.08,3.3306]
[1726108371467,3.3298,135.13,135.09,3.3306]
[1726108371669,11.36,135.1,135.09,3.3306]
[1726108372064,3.3298,135.13,135.09,3.3306]
[1726108372065,17.76,135.12,135.09,3.3306]
[1726108378274,21.0899,135.12,135.08,3.3308]
[1726108378468,17.76,135.1,135.08,3.3308]
[1726108380265,17.76,135.1,135.07,3.331]
[1726108381074,17.76,135.12,135.05,1.3292]
[1726108381263,17.76,135.14,135.05,1.3292]
[1726108381469,17.76,135.14,135.05,2.6533]
[1726108382269,17.76,135.16,135.06,17.76]
[1726108382872,21.0889,135.16,135.12,3.3297]
[1726108383187,17.76,135.18,135.08,17.76]
[1726108383374,17.76,135.18,135.09,1.3302]
[1726108383979,19.0965,135.21,135.09,1.3302]
[1726108384375,17.76,135.16,135.09,1.3302]
[1726108385181,17.76,135.16,135.13,3.3295]
[1726108386078,17.76,135.16,135.09,1.3302]
[1726108387274,17.76,135.16,135.1,2.8401]
[1726108387582,17.76,135.16,135.14,3.3293]
[1726108387785,17.76,135.16,135.1,2.8401]
[1726108388179,17.76,135.18,135.1,2.8401]
[1726108388880,21.0884,135.18,135.1,2.8401]
[1726108389677,17.76,135.18,135.1,2.8401]
[1726108390582,21.0886,135.18,135.13,3.3295]
[1726108391075,21.0886,135.18,135.1,2.8401]
[1726108391677,21.0886,135.18,135.14,3.3292]
[1726108392182,17.76,135.18,135.1,2.8401]
[1726108392386,11.37,135.16,135.14,3.3291]
[1726108396081,11.37,135.16,135.15,3.3291]
[1726108396389,11.37,135.2,135.13,11.37]
[1726108396685,11.37,135.2,135.14,1.4046]
[1726108398885,11.37,135.2,135.18,3.3281]
[1726108400182,17.72053601,135.25,135.14,1.4046]
[1726108400382,11.37,135.19,135.14,12.7746]
[1726108400992,11.37,135.19,135.18,3.3283]
[1726108401583,11.37,135.2,135.18,3.3283]
[1726108401891,11.37,135.21,135.19,3.3281]
[1726108402791,11.37,135.21,135.2,3.3279]
[1726108403494,17.72056984,135.3,135.18,11.37]
[1726108403701,11.37,135.24,135.18,11.37]
[1726108404191,11.37,135.24,135.21,3.3274]
[1726108404496,19.06596984,135.29,135.18,11.37]
[1726108404685,17.72056984,135.28,135.18,11.37]
[1726108404890,11.37,135.24,135.2,3.3276]
[1726108405587,11.37,135.24,135.21,3.3275]
[1726108405787,14.6969,135.24,135.18,11.37]
[1726108406793,14.6969,135.24,135.2,3.3278]
[1726108408788,11.37,135.22,135.19,3.3281]
[1726108410194,11.37,135.21,135.19,3.3281]
[1726108410992,14.6976,135.21,135.15,2.6755]
[1726108411291,11.37,135.21,135.15,2.6755]
[1726108411891,11.37,135.19,135.15,2.6755]
[1726108412094,11.37,135.19,135.14,1.4046]
[1726108412290,11.37,135.19,135.17,3.3286]
[1726108414294,11.37,135.19,135.14,1.4046]
[1726108414889,11.37,135.19,135.16,3.3288]
[1726108415291,11.37,135.19,135.14,1.4046]
[1726108415792,14.6977,135.21,135.17,3.3285]
[1726108416001,14.6977,135.21,135.15,12.6678]
[1726108416198,11.37,135.21,135.18,3.3282]
[1726108416593,1.3727,135.24,135.16,11.37]
[1726108416797,16.0696,135.24,135.2,3.3277]
[1726108417199,12.7427,135.24,135.2,3.3277]
[1726108417400,11.37,135.23,135.2,3.3277]
[1726108418104,11.37,135.21,135.15,14.0806]